[Event "5th Baskent University Open 2022"]
[Site "Ankara"]
[Date "2022.07.05"]
[Round "6.14"]
[White "Khoder, Akram"]
[Black "Ipek, Egehan"]
[Result "1/2-1/2"]
[ECO "E07"]
[WhiteElo "2038"]
[BlackElo "2196"]
[Annotator "TA"]
[PlyCount "117"]
[EventDate "2022.07.02"]
[EventType "swiss"]
[EventCountry "TUR"]
[SourceTitle "playchess.com"]
[Source "ChessBase"]
[SourceQuality "1"]
[TimeControl "5400+30"]

{[%evp 18,117,15,0,0,0,63,67,64,50,149,150,158,150,170,156,195,173,179,204,195,193,191,177,257,256,256,260,256,243,253,235,234,153,181,-86,-85,-85,-86,-93,-108,-100,0,0,16,0,28,29,25,8,13,0,0,0,0,-20,-18,-16,-7,-9,8,-12,0,0,0,0,0,0,0,-161,-149,-137,0,-67,-67,-112,-110,-105,-81,-69,-67,-67,-42,-64,0,0,0,0,0,0,0,0,0,0,0,0,8,8,27,0,0,0]} 1. d4 {[%emt 0:01:00] ChessBase II} d5 {[%emt 0:01:00]} 2. c4 {[%emt 0:00:30]} c6 {[%emt 0:00:30]} 3. Nf3 {[%emt 0:00:30]} Nf6 {[%emt 0:00:00]} 4. g3 {[%emt 0:00:00]} e6 {[%emt 0:02:00]} 5. Bg2 {[%emt 0:00:00]} Be7 {[%emt 0:00:30]} 6. Nc3 {[%emt 0:00:00]} Nbd7 {[%emt 0:00:00]} 7. O-O {[%emt 0:00:00]} O-O {[%emt 0:00:00]} 8. Qd3 {[%emt 0:00:00]} b6 {[%emt 0:00:30]} 9. e4 {[%emt 0:00:00]} Ba6 {[%emt 0:01:30]} 10. b3 {[%emt 0:00:00]} dxc4 {[%emt 0:10:30] E07: Closed Catalan: Main Line (5 Nf3 0-0 6 0-0 Nbd7).} 11. bxc4 {[%emt 0:00:00]} Nc5 {[%emt 0:00:30] [#]} 12. Qc2 $146 {[%emt 0:06:30]} ({Predecessor:} 12. Qe2 Nb7 13. Be3 Ng4 14. Rad1 Na5 15. Nd2 Nxe3 16. fxe3 e5 17. d5 Qd6 18. Rc1 {0-1 (35) Abenius,J-Ackerley,L Switzerland 1992 Corr Nr. 1 [ChessBase II]}) 12... Nb7 {[%emt 0:02:30] White is slightly better.} 13. Rd1 {[%emt 0:29:30]} Rc8 {[%emt 0:11:30]} (13... Bxc4 $14 14. Ne5 Na5) 14. e5 {[%emt 0:00:30]} Nd7 {[%emt 0:20:30]} 15. Ne4 {[%emt 0:00:30] White is more active.} Na5 {[%emt 0:07:30]} 16. c5 {[%emt 0:01:30]} bxc5 {[%emt 0:04:30]} 17. dxc5 {[%emt 0:00:30]} (17. Nxc5 $6 Nxc5 18. dxc5 Qc7 $14) 17... Bc4 {[%emt 0:00:30]} 18. Nfg5 $1 {[%emt 0:33:30][%cal Od1d7]} g6 {[%emt 0:07:30] [#]} 19. Nxh7 $1 {[%emt 0:05:47][%mdl 512]} Kxh7 {[%emt 0:06:30]} 20. Qd2 {[%emt 0:00:13]} Rh8 {[%emt 0:16:03]} (20... Bd5 21. Qh6+ Kg8 22. Ng5 Bxg5 23. Bxg5) (20... Kg8 {is a better defense.}) 21. Qxd7 $18 {[%emt 0:00:30][%cal Oc1g5]} Bd5 {[%emt 0:00:00]} 22. Qxd8 {[%emt 0:01:47]} (22. Qxa7 $6 Nc4 $16) 22... Rcxd8 {[%emt 0:02:20]} 23. Nd6 {[%emt 0:00:37]} Kg7 {[%emt 0:00:08]} 24. Bf1 {[%emt 0:00:59] Prevents Nc4. Bd2 is the strong threat.} Rb8 {[%emt 0:02:28]} 25. Ba6 {[%emt 0:03:40]} f6 {[%emt 0:03:07]} 26. Bd2 $2 {[%emt 0:00:56] [#]} (26. Rd4 $18) 26... Rxh2 $1 $17 {[%emt 0:00:17][%csl Gd5][%cal Rh2h1]} 27. f3 {[%emt 0:01:44] [#]} (27. Kxh2 $2 Rh8+) 27... Rbh8 {[%emt 0:00:19]} 28. Bxa5 {[%emt 0:05:25] And now exf6+ would win.} (28. Bf1 Bxf3) 28... Bxf3 {[%emt 0:00:06]} 29. Bf1 {[%emt 0:03:23] Against Rg2+} (29. Rd2 $2 Rxd2 30. Bxd2 Rh1+ 31. Kf2 Rxa1 $19) 29... Bxd1 {[%emt 0:00:30]} (29... fxe5 $17 {Threatens to win with ...Bg5.} 30. Bd2 Kf8) 30. Rxd1 {[%emt 0:00:28]} Rxa2 {[%emt 0:00:16]} 31. Bc3 {[%emt 0:00:15] This bishop pair is nice.} Rc2 {[%emt 0:00:41] aiming for ...Bxd6.} 32. exf6+ {[%emt 0:00:30]} Bxf6 {[%emt 0:00:30]} 33. Bxf6+ {[%emt 0:00:30]} Kxf6 {[%emt 0:00:30]} 34. Bg2 {[%emt 0:00:30]} Ke7 {[%emt 0:00:30]} 35. Nb7 {[%emt 0:00:13]} Rc8 {[%emt 0:00:22]} 36. Ra1 {[%emt 0:00:00]} Rc7 {[%emt 0:00:14]} 37. Rb1 {[%emt 0:04:31]} Rc3 {[%emt 0:00:30]} 38. Kf2 {[%emt 0:00:30]} e5 {[%emt 0:00:30]} 39. Rb4 {[%emt 0:00:00]} Kf6 {[%emt 0:01:25]} 40. Nd6 {[%emt 0:00:08]} Ke6 {[%emt 0:00:28]} 41. Rg4 {[%emt 0:00:25]} Rc2+ {[%emt 0:00:33]} 42. Kg1 {[%emt 0:00:09]} Rg7 {[%emt 0:00:27]} 43. Nc4 $2 {[%emt 0:00:32]} (43. Rc4 $11 {and White is okay.} Rxc4 44. Nxc4) 43... Rc1+ $19 {[%emt 0:00:30]} 44. Kf2 {[%emt 0:00:00]} g5 {[%emt 0:00:54]} ({Black should try} 44... Rf7+ $17 45. Ke2 Rc2+ 46. Nd2 Rxd2+ $1 {[%mdl 512]} 47. Kxd2 Rf2+ 48. Ke3 Rxg2 49. Rxg6+ Kd5) 45. Re4 {[%emt 0:01:29]} (45. Bxc6 $11 Rc7 46. Ba4) 45... Rf7+ $15 {[%emt 0:00:26]} 46. Ke3 {[%emt 0:00:50] [#]} Rc3+ $1 {[%emt 0:00:40]} 47. Ke2 {[%emt 0:00:44]} ({Much weaker is} 47. Kd2 $6 {[#]} Rxc4 $1 {[%mdl 512]} 48. Bh3+ Kd5 49. Rxc4 Kxc4) 47... Rc2+ {[%emt 0:00:18]} ({Don't play} 47... Rxg3 $6 48. Rxe5+ Kf6 49. Bxc6 $11) 48. Nd2 {[%emt 0:00:00]} Rb7 {[%emt 0:00:31]} 49. Rc4 $1 {[%emt 0:00:09]} Ra2 {[%emt 0:01:00]} 50. Rc3 {[%emt 0:00:27]} ({Wrong is} 50. Bxc6 $2 Rbb2 51. Ke3 Rxd2 $19) 50... Rbb2 {[%emt 0:00:03]} ({Black should play} 50... Rh7 $15 51. Rd3 Rh2) 51. Rd3 $11 {[%emt 0:00:04]} Rc2 {[%emt 0:00:28]} 52. Bxc6 {[%emt 0:00:59]} Rxc5 {[%emt 0:00:04]} 53. Bf3 {[%emt 0:00:41]} a5 {[%emt 0:00:54]} 54. Ke3 {[%emt 0:00:10]} a4 {[%emt 0:01:21]} 55. Ne4 {[%emt 0:00:30][%csl LRc5,LRg5]} Rc1 {[%emt 0:00:00] ( -> ...Re1+)} 56. Bg4+ {[%emt 0:00:06]} Ke7 {[%emt 0:00:23]} 57. Rd7+ {[%emt 0:00:30]} Kf8 {[%emt 0:00:00] Hoping for ...Re1+.} 58. Rd8+ {[%emt 0:00:00][%mdl 1024] White has compensation.} (58. Nxg5 $5 {[%cal Rg5h7]} Re1+ 59. Kf3 Ra3+ 60. Kf2 $11) 58... Ke7 {[%emt 0:00:39]} 59. Rd7+ {[%emt 0:00:00] Weighted Error Value: White=0.25 (precise) /Black=0.18 (very precise)} 1/2-1/2

[Event "5th Baskent University Open 2022"]
[Site "Ankara"]
[Date "2022.07.05"]
[Round "6.15"]
[White "Ozkan, Taha"]
[Black "Yerden, Huseyin Eren"]
[Result "1-0"]
[ECO "A47"]
[WhiteElo "2357"]
[BlackElo "2050"]
[Annotator "TA"]
[PlyCount "83"]
[EventDate "2022.07.02"]
[EventType "swiss"]
[EventCountry "TUR"]
[SourceTitle "playchess.com"]
[Source "ChessBase"]
[SourceQuality "1"]
[TimeControl "5400+30"]

{[%evp 17,83,11,17,2,12,0,59,16,120,14,47,7,32,18,23,23,22,12,120,112,120,126,150,60,59,64,79,62,59,67,58,66,125,133,133,112,148,152,151,124,175,186,185,178,178,181,194,192,237,230,429,237,237,232,237,191,337,278,335,237,422,418,516,463,456,408,5206,4818]} 1. d4 {[%emt 0:02:00]} Nf6 {[%emt 0:01:00]} 2. Nf3 {[%emt 0:00:30]} e6 {[%emt 0:00:00]} 3. e3 {[%emt 0:00:30]} b6 {[%emt 0:01:00]} 4. Bd3 {[%emt 0:00:00]} c5 {[%emt 0:00:30]} 5. O-O {[%emt 0:00:00]} Bb7 {[%emt 0:00:30]} 6. b3 {[%emt 0:00:30]} Be7 {[%emt 0:00:30]} 7. Bb2 {[%emt 0:00:00]} O-O {[%emt 0:00:30]} 8. Nbd2 {[%emt 0:00:00]} Nc6 {[%emt 0:01:30]} 9. a3 {[%emt 0:00:30]} Rc8 {[%emt 0:01:30]} 10. c4 {[%emt 0:02:30] A47: 1 d4 Nf6 2 Nf3 b6: Torre, London and Colle Systems.} Qc7 {[%emt 0:01:30]} 11. Rc1 {[%emt 0:00:30][%cal Ob3b4]} Qb8 {[%emt 0:00:30]} (11... cxd4 $11 12. exd4 d5) 12. Qe2 {[%emt 0:02:30] White is slightly better.} (12. d5 $5 exd5 13. Bxf6 Bxf6 14. cxd5 $11) 12... Rfd8 {[%emt 0:00:30] [#]} (12... cxd4 $11 13. exd4 d5) 13. Rfd1 $146 {[%emt 0:00:00]} (13. d5 $1 $16 {[%cal Rd5c6]}) ({Predecessor:} 13. e4 cxd4 14. e5 Ne8 {½-½ (14) Weemaes,R (2314)-Maas,T (2061) Belgium 2003}) 13... h6 {[%emt 0:01:30]} 14. Bb1 {[%emt 0:00:00][%cal Od4d5] d5! is the strong threat.} (14. d5 $5 exd5 15. cxd5 Nxd5 16. Ne4 $11) 14... d5 {[%emt 0:10:30]} 15. dxc5 {[%emt 0:03:30]} bxc5 {[%emt 0:02:30]} 16. cxd5 {[%emt 0:01:30]} exd5 {[%emt 0:00:30]} 17. Qd3 {[%emt 0:06:30]} c4 {[%emt 0:14:30]} (17... g6 $11 {remains equal.}) 18. bxc4 $16 {[%emt 0:03:30]} dxc4 {[%emt 0:01:30]} 19. Qc2 {[%emt 0:03:30]} (19. Qxc4 Nd4 $1 20. Qf1 Bxf3 21. Rxc8 Rxc8 $15) 19... Ba6 {[%emt 0:14:30]} 20. Ba2 {[%emt 0:38:30]} (20. Nxc4 $6 Bxc4 21. Bxf6 Bxf6 $11) ({White should play} 20. Bxf6 $16 {Intending Qh7+ and mate.} Bxf6 21. Qh7+ (21. Nxc4 Bxc4 22. Qxc4 Nd4 $11) 21... Kf8 22. Bf5) 20... Na5 {[%emt 0:13:30]} 21. Bc3 {[%emt 0:07:30]} Nb3 {[%emt 0:00:30]} 22. Rb1 {[%emt 0:02:30][%cal Rd2b3]} Qc7 {[%emt 0:02:30]} 23. Be5 $1 {[%emt 0:09:28]} (23. Nxb3 Rxd1+ 24. Qxd1 (24. Rxd1 $2 cxb3 25. Qxb3 Qxc3 $19) 24... cxb3 25. Rxb3 (25. Qxb3 $2 Qxc3 26. Qxf7+ Kh7 $19) 25... Bc4 $17) 23... Qa5 {[%emt 0:03:30] aiming for ...Nxd2.} 24. Nxb3 {[%emt 0:00:58]} Rxd1+ {[%emt 0:01:30] Black is now going downhill.} (24... cxb3 $14 25. Rxd8+ (25. Qxb3 Bc4 $16) 25... Qxd8 26. Qxb3 Bc4) 25. Qxd1 {[%emt 0:01:14]} cxb3 {[%emt 0:00:30]} 26. Qxb3 {[%emt 0:00:00]} Bc4 {[%emt 0:00:30]} 27. Qb7 {[%emt 0:00:24][%csl LRc8,LRe7]} Qa6 {[%emt 0:06:30] Hoping for ...Qxb7.} 28. Bxc4 {[%emt 0:02:16] White is more active.} ({Don't take} 28. Qxe7 Bxa2 29. Re1 Re8 $16) 28... Qxc4 {[%emt 0:00:41]} (28... Qxb7 $16 29. Rxb7 Rxc4) 29. h3 $18 {[%emt 0:01:16]} ({Avoid the trap} 29. Qxe7 $2 {[#]} Qc1+ $3 {[%mdl 512]} 30. Ne1 Qxb1 $19) 29... Bxa3 {[%emt 0:02:47]} 30. Bxf6 {[%emt 0:01:30]} gxf6 {[%emt 0:00:51]} 31. Qxa7 {[%emt 0:00:28]} Bd6 {[%emt 0:00:31][%cal Oc4c1] Threatens to win with ...Qc1+!} 32. Rd1 {[%emt 0:01:07] Prevents Qc1.} Be5 {[%emt 0:01:15]} 33. Qd7 {[%emt 0:02:00]} Qc2 $2 {[%emt 0:01:11]} (33... Qe6 34. Nxe5 fxe5 35. Qxe6 fxe6) 34. g3 {[%emt 0:01:13]} (34. Nxe5 $142 fxe5 35. Rd6) 34... Rb8 {[%emt 0:00:45]} 35. Kg2 {[%emt 0:00:42]} h5 {[%emt 0:03:37]} 36. Qd3 {[%emt 0:02:36]} Qa4 {[%emt 0:00:18]} (36... Qxd3 $142 37. Rxd3 Rb5) 37. Rb1 {[%emt 0:02:18]} Rc8 {[%emt 0:01:08]} 38. Qf5 {[%emt 0:00:45][%csl LRc8,LRe5,LRh5]} Qa8 {[%emt 0:05:48]} (38... Qc2 39. Qxh5 Qg6) 39. Qxh5 {[%emt 0:00:39]} Rc2 {[%emt 0:00:19]} 40. Qg4+ {[%emt 0:00:52]} Kh8 {[%emt 0:00:56]} 41. Qf5 {[%emt 0:01:31]} Qa2 {[%emt 0:01:23] [#]} (41... Qc6 $142 42. Rd1 Bc7) 42. Nxe5 $1 {[%emt 0:00:45] Weighted Error Value: White=0.30/Black=0.47} 1-0

[Event "5th Baskent University Open 2022"]
[Site "Ankara"]
[Date "2022.07.05"]
[Round "6.16"]
[White "Primbetov, Marat"]
[Black "Unver, Cumali"]
[Result "0-1"]
[ECO "C90"]
[WhiteElo "2186"]
[BlackElo "2046"]
[Annotator "TA"]
[PlyCount "66"]
[EventDate "2022.07.02"]
[EventType "swiss"]
[EventCountry "TUR"]
[SourceTitle "playchess.com"]
[Source "ChessBase"]
[SourceQuality "1"]
[TimeControl "5400+30"]

{[%evp 27,66,-4,0,0,0,0,39,-29,-33,-27,-8,-14,-7,-30,0,0,3,-59,-45,-51,-57,-74,-64,-283,-187,-175,-181,-278,-286,-350,-350,-545,-523,-635,-565,-29994,-29995,-29995,-29996,-29996,-29997]} 1. e4 {[%emt 0:04:00]} e5 {[%emt 0:01:00]} 2. Nf3 {[%emt 0:00:30]} Nc6 {[%emt 0:00:00]} 3. Bb5 {[%emt 0:00:00]} a6 {[%emt 0:01:00]} 4. Ba4 {[%emt 0:00:00]} Nf6 {[%emt 0:00:30]} 5. d3 {[%emt 0:00:30]} b5 {[%emt 0:00:30]} 6. Bb3 {[%emt 0:00:00]} Be7 {[%emt 0:00:00]} 7. O-O {[%emt 0:00:00]} d6 {[%emt 0:00:00]} 8. c3 {[%emt 0:00:00]} O-O {[%emt 0:00:30]} 9. Nbd2 {[%emt 0:00:00]} Na5 {[%emt 0:00:00]} 10. Bc2 {[%emt 0:00:30]} c5 {[%emt 0:00:00]} 11. Re1 {[%emt 0:00:00]} Nc6 {[%emt 0:01:30]} 12. Nf1 {[%emt 0:00:00]} Nd7 {[%emt 0:00:30]} 13. Ng3 {[%emt 0:01:30]} Nb6 {[%emt 0:00:00]} 14. h3 {[%emt 0:00:00]} Re8 {[%emt 0:00:00]} 15. d4 {[%emt 0:03:00] C90: Closed Ruy Lopez with 7...d6: Early deviations.} cxd4 {[%emt 0:16:30]} 16. cxd4 {[%emt 0:00:30] [#]} Bd7 $146 {[%emt 0:01:30]} ({Predecessor:} 16... exd4 17. Nxd4 Nxd4 18. Qxd4 Bf6 19. Qd1 g6 20. Rb1 {½-½ (20) Fedorowicz,J (2470)-Bhat,V (2481) Tulsa 2008}) 17. Nf5 {[%emt 0:24:30]} (17. d5 $14 Nb4 18. Bb1) 17... Bxf5 $11 {[%emt 0:03:30]} 18. exf5 {[%emt 0:01:30][%cal Rd4e5]} Nxd4 {[%emt 0:00:30]} 19. Nxd4 {[%emt 0:00:30]} exd4 {[%emt 0:00:00]} 20. Qxd4 {[%emt 0:01:30][%cal Of5f6] [#] aiming for f6!} Nc4 {[%emt 0:02:00]} 21. Rb1 {[%emt 0:07:30]} Bf6 {[%emt 0:01:30]} 22. Qd1 {[%emt 0:05:30]} (22. Rxe8+ $11 Qxe8 23. Qd1) 22... Qa5 $15 {[%emt 0:07:30][%csl LRa2,LRe1]} 23. Re2 {[%emt 0:17:30]} Qxa2 {[%emt 0:15:30]} 24. g4 {[%emt 0:07:30]} h6 {[%emt 0:05:30] Against g5. White must now prevent ...Rxe2. Black is much more active.} ({Much less strong is} 24... Bxb2 25. f6 $16) (24... Nxb2 $2 25. Bxb2 Rxe2 26. Qxe2 $18) 25. f4 $2 {[%emt 0:05:30] White does not recover from this.} (25. b3 $15 Rxe2 26. Qxe2) 25... Nxb2 {[%emt 0:06:30]} 26. Bxb2 {[%emt 0:12:08]} Bxb2 {[%emt 0:05:30]} 27. Be4 {[%emt 0:03:48] [#]} (27. Kf1 {might work better.} Qa3 28. Qd3) 27... Qc4 $1 $19 {[%emt 0:05:30]} 28. Rbxb2 {[%emt 0:05:23]} (28. Qd3 Bd4+) 28... Rxe4 {[%emt 0:00:30]} 29. Rxe4 {[%emt 0:00:57]} (29. Rec2 {is a better defense.} Qd4+ 30. Qxd4 Rxd4 31. Kf2) 29... Qxe4 {[%emt 0:00:30]} 30. Qxd6 {[%emt 0:00:00] KQR-KQR} Rc8 {[%emt 0:00:00] ( -> ...Rc1+)} 31. Rf2 {[%emt 0:01:09]} Rc1+ {[%emt 0:00:00] Black mates.} 32. Rf1 {[%emt 0:00:30]} Qe3+ {[%emt 0:00:30]} 33. Kg2 {[%emt 0:00:00]} Rc2+ {[%emt 0:00:30] Weighted Error Value: White=1.04/Black=0.13 (very precise)} 0-1

[Event "5th Baskent University Open 2022"]
[Site "Ankara"]
[Date "2022.07.05"]
[Round "6.17"]
[White "Cakiroglu, Metin"]
[Black "Primbetov, Kazbek"]
[Result "1/2-1/2"]
[ECO "D34"]
[WhiteElo "2068"]
[BlackElo "2147"]
[Annotator "TA"]
[PlyCount "76"]
[EventDate "2022.07.02"]
[EventType "swiss"]
[EventCountry "TUR"]
[SourceTitle "playchess.com"]
[Source "ChessBase"]
[SourceQuality "1"]
[TimeControl "5400+30"]

{[%evp 23,76,28,33,36,45,40,50,52,61,61,78,64,76,21,20,12,21,24,18,18,37,0,0,0,95,85,88,82,101,95,87,92,122,-5,-5,-6,-6,-6,0,0,0,-3,-6,-8,0,0,0,0,0,0,0,0,0,0,0]} 1. c4 {[%emt 0:01:00]} e6 {[%emt 0:06:00]} 2. g3 {[%emt 0:00:30]} c5 {[%emt 0:01:30]} 3. Bg2 {[%emt 0:00:30]} Nc6 {[%emt 0:00:00]} 4. Nf3 {[%emt 0:00:00]} d5 {[%emt 0:06:00]} 5. cxd5 {[%emt 0:00:00]} exd5 {[%emt 0:00:30]} 6. d4 {[%emt 0:00:30]} Nf6 {[%emt 0:00:00]} 7. O-O {[%emt 0:00:30]} Be6 {[%emt 0:00:00]} 8. Nc3 {[%emt 0:00:00]} Be7 {[%emt 0:07:30]} 9. dxc5 {[%emt 0:03:00]} Bxc5 {[%emt 0:00:30]} 10. Na4 {[%emt 0:00:30]} Be7 {[%emt 0:00:30]} 11. Be3 {[%emt 0:00:30]} O-O {[%emt 0:04:30]} 12. Rc1 {[%emt 0:01:30]} Ne4 {[%emt 0:14:30]} 13. Nd4 {[%emt 0:04:30] D34: Tarrasch Defence: 6 g3 Nf6 7 Bg2 Be7.} Nxd4 {[%emt 0:03:30]} 14. Bxd4 {[%emt 0:00:00]} Qa5 {[%emt 0:03:30]} 15. a3 {[%emt 0:02:00] White is slightly better.} Rac8 {[%emt 0:02:30]} 16. Nc3 {[%emt 0:00:30]} f5 {[%emt 0:18:30] [#]} 17. Qd3 $146 {[%emt 0:03:30]} ({Predecessor:} 17. f3 Nxc3 18. Rxc3 Rxc3 19. Bxc3 Qb6+ 20. Kh1 Bc5 21. Be5 Be3 22. Qa4 d4 23. Qb4 Qxb4 24. axb4 Bd5 25. Bxd4 Bxd4 26. Rd1 Bxb2 {½-½ (27) Korpics,Z (2330)-Volosin,V (2285) Szeged 1993}) 17... Rc4 {[%emt 0:03:30]} 18. Qe3 {[%emt 0:12:30]} ({White should try} 18. Rcd1 $16) 18... Bg5 $11 {[%emt 0:07:39]} 19. f4 {[%emt 0:00:30]} Bf6 {[%emt 0:02:55]} 20. Bxf6 {[%emt 0:01:30]} Rxf6 {[%emt 0:00:10][%cal Bf8f6,Bf6b6,Bb6b2,Bb2e2][%mdl 32]} 21. Rfd1 {[%emt 0:02:30] Inhibits d4.} h6 {[%emt 0:09:23]} 22. Rd3 {[%emt 0:07:30]} Bf7 {[%emt 0:02:53]} 23. Rcd1 {[%emt 0:03:30]} Qb6 {[%emt 0:05:23]} (23... Nxc3 $11 24. Rxc3 Rxc3 25. Qxc3 Qxc3 26. bxc3 Ra6) 24. Qxb6 {[%emt 0:00:30]} Rxb6 {[%emt 0:00:30]} 25. Nxd5 {[%emt 0:00:30]} Bxd5 {[%emt 0:00:30]} 26. Rxd5 {[%emt 0:00:30]} Rxb2 {[%emt 0:00:00]} 27. Rxf5 {[%emt 0:05:30] aiming for Bf3.} Nc3 {[%emt 0:00:36] [#]} 28. Bd5+ {[%emt 0:02:30]} (28. Re5 $1 $16) 28... Nxd5 {[%emt 0:00:39] The position is equal.} 29. Rfxd5 {[%emt 0:00:30]} Rxe2 {[%emt 0:00:18][%mdl 4096] Endgame ...Rcc2 is the strong threat. KRR-KRR} 30. R5d2 {[%emt 0:00:30]} Re3 {[%emt 0:00:47]} 31. Rd3 {[%emt 0:01:30]} Re2 {[%emt 0:00:30]} 32. R3d2 {[%emt 0:00:00]} Rxd2 {[%emt 0:00:45]} 33. Rxd2 {[%emt 0:00:00] KR-KR} Rc3 {[%emt 0:00:22]} 34. Rd7 {[%emt 0:00:00]} Rxa3 {[%emt 0:00:45]} 35. Rxb7 {[%emt 0:00:00]} Ra2 {[%emt 0:00:00]} 36. g4 {[%emt 0:00:30]} a5 {[%emt 0:00:52]} 37. Ra7 {[%emt 0:00:30]} Ra4 {[%emt 0:00:45]} 38. h3 {[%emt 0:00:30]} Rxf4 {[%emt 0:00:48] Weighted Error Value: White=0.14 (very precise) /Black=0.14 (very precise)} 1/2-1/2

[Event "5th Baskent University Open 2022"]
[Site "Ankara"]
[Date "2022.07.05"]
[Round "6.18"]
[White "Cansu, Batuhan"]
[Black "Kocak, Can"]
[Result "1/2-1/2"]
[ECO "A49"]
[WhiteElo "2083"]
[BlackElo "2057"]
[Annotator "TA"]
[PlyCount "96"]
[EventDate "2022.07.02"]
[EventType "swiss"]
[EventCountry "TUR"]
[SourceTitle "playchess.com"]
[Source "ChessBase"]
[SourceQuality "1"]
[TimeControl "5400+30"]

{[%evp 16,96,18,6,17,16,16,29,14,8,7,20,20,12,13,25,26,19,23,11,105,113,109,82,71,68,73,66,65,69,68,60,71,47,38,0,0,0,0,0,0,0,0,0,7,5,18,18,18,18,18,18,18,18,35,18,18,18,17,17,19,0,0,0,0,0,0,0,8,0,0,0,0,0,0,0,0,0,0,0,0,0,0]} 1. d4 {[%emt 0:24:00]} g6 {[%emt 0:01:00]} 2. Nf3 {[%emt 0:00:30]} Bg7 {[%emt 0:00:30]} 3. g3 {[%emt 0:00:30]} Nf6 {[%emt 0:00:30]} 4. Bg2 {[%emt 0:00:30]} O-O {[%emt 0:00:00]} 5. O-O {[%emt 0:00:00]} d6 {[%emt 0:00:00][%cal Bd7d6,Bd6d5][%mdl 32]} 6. b3 {[%emt 0:00:00]} c5 {[%emt 0:00:30]} 7. Bb2 {[%emt 0:00:30]} cxd4 {[%emt 0:00:00]} 8. Nxd4 {[%emt 0:00:00]} d5 {[%emt 0:00:00]} 9. c4 {[%emt 0:00:00]} e5 {[%emt 0:00:00] A49: 1 d4 Nf6 2 Nf3 g6 3 g3: Anti-King's Indian systems.} 10. Nf3 {[%emt 0:00:00]} e4 {[%emt 0:00:00]} 11. Nd4 {[%emt 0:00:00]} dxc4 {[%emt 0:00:00] White has an edge.} 12. Nd2 {[%emt 0:12:30]} cxb3 {[%emt 0:18:00]} 13. Qxb3 {[%emt 0:00:30]} (13. N4xb3 Qe7) 13... Nc6 {[%emt 0:21:30]} 14. Nxc6 {[%emt 0:00:30]} Qxd2 {[%emt 0:00:30]} 15. Ne7+ {[%emt 0:01:30]} Kh8 {[%emt 0:00:00] Strongly threatening ...Be6.} 16. Nxc8 {[%emt 0:07:30]} Raxc8 {[%emt 0:00:00]} 17. e3 {[%emt 0:02:30] [#]} Rc2 $146 {[%emt 0:13:30]} (17... Qc2 $11 {keeps the balance.}) ({Predecessor:} 17... Qd3 18. Rfd1 Qxb3 19. axb3 a6 20. Rac1 Kg8 21. Bxf6 Bxf6 22. Bxe4 b5 23. Rxc8 Rxc8 {½-½ (37) Malakhov,V (2654)-Amin,B (2709) Zagreb 2018}) 18. Rad1 $16 {[%emt 0:01:30]} Qe2 {[%emt 0:00:00]} 19. Bxf6 {[%emt 0:11:30]} (19. Ba3 Rg8 20. Qxf7) (19. Ba3 {looks sharper.} Rb8 20. Qxf7 Qc4 21. Qe7) 19... Bxf6 {[%emt 0:00:00]} 20. Qxb7 {[%emt 0:01:30]} (20. Rd7 {keeps more tension.} Kg7 21. Bxe4 Rb2 22. Qd5) 20... Rxa2 {[%emt 0:00:30]} 21. Bxe4 {[%emt 0:00:30]} Qb2 {[%emt 0:01:30]} 22. Rb1 {[%emt 0:04:30]} Qxb7 {[%emt 0:00:30]} 23. Rxb7 {[%emt 0:00:00]} a5 {[%emt 0:03:30]} 24. Bd5 {[%emt 0:05:00]} Rd2 {[%emt 0:00:30]} 25. Rxf7 {[%emt 0:03:30]} Rxf7 {[%emt 0:00:30]} 26. Bxf7 $14 {[%emt 0:00:30][%mdl 4096] Endgame KRB-KRB} a4 {[%emt 0:00:00]} 27. Rc1 {[%emt 0:00:30]} a3 {[%emt 0:02:00]} 28. Rc8+ {[%emt 0:00:30]} Kg7 {[%emt 0:00:00]} 29. Rc7 {[%emt 0:00:30]} Be5 {[%emt 0:03:00]} 30. Ra7 {[%emt 0:00:30] Threatens to win with Bc4+.} Kf6 {[%emt 0:02:30]} 31. Bg8 {[%emt 0:01:30]} Bd6 {[%emt 0:00:30]} 32. Kg2 {[%emt 0:00:30]} h5 {[%emt 0:00:30]} 33. h4 {[%emt 0:00:30]} Bc5 {[%emt 0:02:30][%csl LRa7,LRe3]} 34. Rc7 {[%emt 0:08:12]} Bd6 {[%emt 0:04:30]} 35. Rc6 {[%emt 0:01:16]} Kg7 {[%emt 0:03:30] The position is equal.} 36. Be6 {[%emt 0:00:05]} Bb4 {[%emt 0:03:30]} ({Not} 36... a2 {[#]} 37. Bxa2 $1 {[%mdl 512]} Bxg3 38. Kxg3 $16) 37. Ra6 {[%emt 0:04:58]} Rc2 {[%emt 0:00:30]} 38. g4 {[%emt 0:03:58]} hxg4 {[%emt 0:02:30]} 39. Bxg4 {[%emt 0:00:23]} Be1 {[%emt 0:00:30]} 40. Rxa3 {[%emt 0:00:18]} Bxf2 {[%emt 0:01:30]} 41. Kh3 {[%emt 0:01:31]} Be1 {[%emt 0:00:00]} 42. Ra7+ {[%emt 0:00:26]} Kh6 {[%emt 0:01:55]} 43. Re7 {[%emt 0:02:12]} Rc3 {[%emt 0:00:08]} 44. h5 {[%emt 0:01:31]} gxh5 {[%emt 0:00:30]} 45. Re6+ {[%emt 0:00:30]} Kg7 {[%emt 0:00:29]} 46. Bxh5 {[%emt 0:00:00]} Bd2 {[%emt 0:00:03]} 47. Kg2 {[%emt 0:00:07]} Rxe3 {[%emt 0:00:30]} 48. Rxe3 {[%emt 0:00:30]} Bxe3 {[%emt 0:00:25] Weighted Error Value: White=0.04 (flawless) /Black=0.07 (flawless)} 1/2-1/2